fUSD/lending_fUSD_20240329
["ID","MTS","AMOUNT","RATE_DAILY","PERIOD"]
[320900911,1711675841102,-986.06,0.00049315,120]
[320900912,1711675841111,-500.0,0.00049315,120]
[320900913,1711675841122,-697.96,0.00049315,120]
[320900914,1711675841131,-624.42,0.00049315,120]
[320900915,1711675841142,-1907.0,0.00049315,120]
[320900916,1711675841152,-7985.54,0.00049315,120]
[320900917,1711675841162,-779.5,0.00049315,120]
[320900918,1711675841172,-500.0,0.00049315,120]
[320900919,1711675841182,-500.0,0.00049315,120]
[320900920,1711675841192,-839.35,0.00049315,120]
[320900921,1711675841201,-1181.05,0.00049315,120]
[320900922,1711675841214,-940.66,0.00049315,120]
[320900923,1711675841224,-500.0,0.00049315,120]
[320900924,1711675841233,-513.69,0.00049315,120]
[320900925,1711675841243,-750.42,0.00049315,120]
[320900926,1711675841252,-2440.77,0.00049315,120]
[320900927,1711675841262,-500.0,0.00049315,120]
[320900928,1711675841271,-612.46,0.00049315,120]
[320900929,1711675841281,-500.0,0.00049315,120]
[320900930,1711675841291,-704.19,0.00049315,120]
[320900931,1711675841300,-664.67,0.00049315,120]
[320900932,1711675841309,-595.63,0.00049315,120]
[320900933,1711675841319,-500.0,0.00049315,120]
[320900934,1711675841329,-500.0,0.00049315,120]
[320900935,1711675841339,-505.75,0.00049315,120]
[320900936,1711675841349,-999.53,0.00049315,21]
[320900937,1711675841358,-2548.05,0.00049315,120]
[320900938,1711675841368,-1303.29,0.00049315,120]
[320900939,1711675841377,-603.95,0.00049315,120]
[320900940,1711675841387,-1490.86,0.00049315,60]
[320900941,1711675841396,-3227.52,0.00049315,120]
[320900942,1711675841406,-500.0,0.00049315,120]
[320900943,1711675841416,-1330.78,0.00049315,120]
[320900944,1711675841425,-755.61,0.00049315,120]
[320900945,1711675841435,-879.31,0.00049315,120]
[320900946,1711675841444,-1993.48,0.00049315,120]
[320900947,1711675841454,-500.0,0.00049315,120]
[320900948,1711675841464,-903.53,0.00049315,120]
[320900949,1711675841473,-500.0,0.00049315,120]
[320900950,1711675841482,-589.78,0.00049315,120]
[320900951,1711675841491,-803.36,0.00049315,120]
[320900952,1711675841500,-959.41,0.00049315,120]
[320900953,1711675841510,-677.91,0.00049315,120]
[320900954,1711675841519,-650.83,0.00049315,120]
[320900955,1711675841529,-500.0,0.00049315,120]
[320900956,1711675841539,-2921.68,0.00049315,120]
[320900957,1711675841549,-730.8,0.00049315,120]
[320900958,1711675841558,-500.0,0.00049315,120]
[320900959,1711675841568,-999.85,0.00049315,120]
[320900960,1711675841578,-500.0,0.00049315,120]
[320900961,1711675841588,-500.0,0.00049315,120]
[320900962,1711675841598,-521.93,0.00049315,120]
[320900963,1711675841607,-670.56,0.00049315,120]
[320900964,1711675841617,-500.0,0.00049315,120]
[320900965,1711675841629,-500.0,0.00049315,120]
[320900966,1711675841638,-705.67,0.00049315,120]
[320900967,1711675841648,-500.0,0.00049315,120]
[320900968,1711675841657,-543.92932647,0.00049315,120]
[320900969,1711675841667,-774.21,0.00049315,120]
[320900970,1711675841677,-500.0,0.00049315,120]
[320900971,1711675841690,-500.0,0.00049315,120]
[320900972,1711675841700,-2206.6,0.00049315,120]
[320900973,1711675841709,-676.97,0.00049315,120]
[320900974,1711675841718,-629.9527521,0.00049315,120]
[320900975,1711675841728,-500.0,0.00049315,120]
[320900976,1711675841738,-542.79,0.00049315,120]
[320900977,1711675841751,-500.0,0.00049315,120]
[320900978,1711675841762,-1529.53,0.00049315,120]
[320900979,1711675841771,-799.19,0.00049315,120]
[320900980,1711675841781,-521.0859947,0.00049315,120]
[320900981,1711675841791,-675.33,0.00049315,120]
[320900982,1711675841801,-629.58,0.00049315,120]
[320900983,1711675841812,-664.66,0.00049315,120]
[320900984,1711675841822,-500.0,0.00049315,120]
[320900985,1711675841833,-482.17591593,0.00049315,120]
[320900986,1711675841842,-1380.78,0.00049315,120]
[320900987,1711675841852,-500.0,0.00049315,120]
[320900988,1711675841862,-1785.47,0.00049315,120]
[320900989,1711675841872,-500.0,0.00049315,120]
[320900990,1711675841881,-500.0,0.00049315,120]
[320900991,1711675841891,-500.0,0.00049315,120]
[320900992,1711675841901,-748.62,0.00049315,120]
[320900993,1711675841911,-970.09,0.00049315,120]
[320900994,1711675841922,-1169.81,0.00049315,120]
[320900995,1711675841933,-500.0,0.00049315,120]
[320900996,1711675841942,-152.0,0.00049416,3]
[320900997,1711675841953,-5000.0,0.00049489,3]
[320900998,1711675841963,-233.96732315,0.000495,10]
[320900999,1711675841974,-4791.63503147,0.00049587,5]
[320901000,1711675841984,-500.0,0.00049588,120]
[320901001,1711675841994,-500.0,0.00049588,120]
[320901002,1711675842004,-500.0,0.00049588,120]
[320901003,1711675842013,-500.0,0.00049588,120]
[320901004,1711675842024,-526.46,0.00049588,120]
[320901005,1711675842033,-223.2138631,0.00049588,120]
[320901006,1711675842043,-541.77982657,0.00049588,120]
[320901007,1711675842052,-500.0,0.00049588,120]
[320901008,1711675842063,-467.69,0.00049588,120]
[320901009,1711675842072,-278.66,0.00049588,120]
[320901010,1711675842083,-535.99,0.00049588,120]
[320901011,1711675842092,-624.75,0.00049588,120]
[320901012,1711675842103,-247.42,0.00049588,120]
[320901013,1711675842112,-500.0,0.00049588,2]
[320901014,1711675842122,-446.5,0.00049588,120]
[320901015,1711675842131,-500.0,0.00049588,120]
[320901016,1711675842141,-500.0,0.00049588,120]
[320901017,1711675842150,-536.47,0.00049588,120]
[320901018,1711675842230,-505.90704666,0.00049588,120]
[320901019,1711675842240,-784.02,0.00049588,120]
[320901020,1711675842249,-500.0,0.00049588,120]
[320901021,1711675842258,-775.37,0.00049588,120]
[320901022,1711675842267,-514.99149963,0.00049588,120]
[320901023,1711675842277,-592.06,0.00049588,120]
[320901024,1711675842286,-542.71,0.00049588,120]
[320901025,1711675842296,-1175.0,0.00049588,120]
[320901026,1711675842305,-740.1,0.00049588,120]
[320901027,1711675842314,-1049.87,0.00049588,120]
[320901028,1711675842323,-327.6,0.00049588,120]
[320901029,1711675842333,-500.0,0.00049588,120]
[320901030,1711675842342,-962.67,0.00049588,120]
[320901031,1711675842351,-826.39,0.00049588,120]
[320901032,1711675842360,-500.0,0.00049588,120]
[320901033,1711675842370,-500.0,0.00049588,120]
[320901034,1711675842379,-818.87,0.00049588,120]
[320901035,1711675842387,-1345.33,0.00049588,120]
[320901036,1711675842397,-500.0,0.00049588,120]
[320901037,1711675842406,-422.88,0.00049588,120]
[320901038,1711675842415,-590.25,0.00049588,120]
[320901039,1711675842424,-500.0,0.00049588,120]
[320901040,1711675842433,-500.0,0.00049588,120]
[320901041,1711675842442,-1164.0,0.00049588,120]
[320901042,1711675842451,-500.0,0.00049588,120]
[320901043,1711675842460,-500.0,0.00049588,120]
[320901044,1711675842469,-500.0,0.00049588,120]
[320901045,1711675842478,-1014.79,0.00049588,120]
[320901046,1711675842486,-1300.93,0.00049588,120]
[320901047,1711675842495,-500.0,0.00049588,120]
[320901048,1711675842504,-500.0,0.00049588,120]
[320901049,1711675842513,-266.77,0.00049588,120]
[320901050,1711675842522,-747.81,0.00049588,120]
[320901051,1711675842531,-500.0,0.00049588,120]
[320901052,1711675842540,-500.0,0.00049588,120]
[320901053,1711675842549,-500.0,0.00049588,120]
[320901054,1711675842558,-630.48,0.00049588,120]
[320901055,1711675842567,-500.0,0.00049588,120]
[320901056,1711675842577,-500.0,0.00049588,120]
[320901057,1711675842586,-500.0,0.00049588,120]
[320901058,1711675842595,-255.37697246,0.00049588,120]
[320901059,1711675842603,-802.58,0.00049588,120]
[320901060,1711675842612,-538.12650916,0.00049588,120]
[320901061,1711675842621,-522.82844505,0.00049588,120]
[320901062,1711675842631,-221.46241135,0.00049588,120]
[320901063,1711675842640,-746.08,0.00049588,120]
[320901064,1711675842649,-656.75,0.00049588,120]
[320901065,1711675842658,-978.95,0.00049588,120]
[320901066,1711675842667,-500.0,0.00049588,120]
[320901067,1711675842676,-501.73556565,0.00049589,120]
[320901068,1711675842685,-500.0,0.00049589,2]
[320901069,1711675842697,-500.0,0.00049589,120]
[320901070,1711675842706,-505.64,0.00049589,120]
[320901071,1711675842715,-500.0,0.00049589,120]
[320901072,1711675842724,-500.0,0.00049589,120]
[320901073,1711675842734,-500.0,0.00049589,120]
[320901074,1711675842743,-500.0,0.00049589,120]
[320901075,1711675842753,-500.0,0.00049589,120]
[320901076,1711675842762,-500.0,0.00049589,120]
[320901077,1711675842772,-500.0,0.00049589,120]
[320901078,1711675842781,-500.0,0.00049589,120]
[320901079,1711675842790,-500.0,0.00049589,120]
[320901080,1711675842800,-635.10910501,0.00049589,120]
[320901081,1711675842809,-500.0,0.00049589,120]
[320901082,1711675842818,-500.0,0.00049589,120]
[320901083,1711675842828,-500.0,0.00049589,120]
[320901084,1711675842837,-500.0,0.00049589,120]
[320901085,1711675842846,-500.0,0.00049589,120]
[320901086,1711675842856,-500.0,0.00049589,120]
[320901087,1711675842866,-500.0,0.00049589,120]
[320901088,1711675842875,-500.0,0.00049589,120]
[320901089,1711675842884,-500.0,0.00049589,120]
[320901090,1711675842893,-500.0,0.00049589,120]
[320901091,1711675842903,-612.97,0.00049589,120]
[320901092,1711675842912,-500.0,0.00049589,120]
[320901093,1711675842921,-500.0,0.00049589,120]
[320901094,1711675842930,-500.0,0.00049589,120]
[320901095,1711675842939,-381.50815445,0.00049589,30]
[320901096,1711675842949,-500.0,0.00049589,120]
[320901097,1711675842959,-500.0,0.00049589,120]
[320901098,1711675842968,-429.13055041,0.00049589,120]
[320901099,1711675842979,-500.0,0.00049589,120]
[320901100,1711675842988,-500.0,0.00049589,120]
[320901101,1711675842997,-500.0,0.00049589,120]
[320901102,1711675843007,-500.0,0.00049589,120]
[320901103,1711675843016,-500.0,0.00049589,120]
[320901104,1711675843026,-500.0,0.00049589,120]
[320901105,1711675843035,-500.0,0.00049589,120]
[320901106,1711675843044,-500.0,0.00049589,120]
[320901107,1711675843053,-500.0,0.00049589,120]
[320901108,1711675843062,-500.0,0.00049589,120]
[320901109,1711675843072,-500.0,0.00049589,120]
[320901110,1711675843084,-150.0,0.00049589,120]
[320901111,1711675843093,-500.0,0.00049589,120]
[320901112,1711675843103,-500.0,0.00049589,120]
[320901113,1711675843113,-342.47289067,0.00049589,120]
[320901114,1711675843122,-500.0,0.00049589,120]
[320901115,1711675843132,-500.0,0.00049589,120]
[320901116,1711675843141,-500.0,0.00049589,120]
[320901117,1711675843150,-500.0,0.00049589,120]
[320901118,1711675843159,-500.0,0.00049589,120]
[320901119,1711675843168,-500.0,0.00049589,120]
[320901120,1711675843178,-500.0,0.00049589,120]
[320901121,1711675843187,-500.0,0.00049589,120]
[320901122,1711675843196,-500.0,0.00049589,120]
[320901123,1711675843205,-500.0,0.00049589,120]
[320901124,1711675843214,-500.0,0.00049589,120]
[320901125,1711675843223,-500.0,0.00049589,7]
[320901126,1711675843233,-500.0,0.00049589,120]
[320901128,1711675843242,-500.0,0.00049589,120]
[320901129,1711675843250,-500.0,0.00049589,120]
[320901130,1711675843260,-500.0,0.00049589,120]
[320901131,1711675843269,-500.0,0.00049589,120]
[320901132,1711675843278,-606.36,0.00049589,120]
[320901133,1711675843287,-500.0,0.00049589,80]
[320901134,1711675843296,-500.0,0.00049589,120]
[320901135,1711675843305,-681.75,0.00049589,120]
[320901136,1711675843314,-681.75,0.00049589,120]
[320901137,1711675843324,-681.75,0.00049589,120]
[320901138,1711675843335,-500.0,0.00049589,120]
[320901139,1711675843344,-686.33,0.00049589,120]
[320901141,1711675843353,-980.59,0.00049589,120]
[320901142,1711675843362,-500.0,0.00049589,120]
[320901143,1711675843371,-509.48,0.00049589,120]
[320901145,1711675843380,-500.0,0.00049589,120]
[320901147,1711675843389,-4571.9,0.00049589,120]
[320901148,1711675843398,-4521.69,0.00049589,120]
[320901149,1711675843407,-1457.26,0.00049589,120]
[320901150,1711675843416,-500.0,0.00049589,120]
[320901151,1711675843425,-617.27,0.00049589,120]
[320901152,1711675843434,-500.0,0.00049589,120]
[320901153,1711675843443,-500.0,0.00049589,120]
[320901154,1711675843453,-500.0,0.00049589,120]
[320901155,1711675843462,-1515.74,0.00049589,120]
[320901156,1711675843472,-3232.73,0.00049589,120]
[320901157,1711675843481,-500.0,0.00049589,60]
[320901158,1711675843490,-1085.93,0.00049589,120]
[320901159,1711675843500,-500.0,0.00049589,120]
[320901160,1711675843509,-500.0,0.00049589,120]
[320901161,1711675843518,-803.01,0.00049589,120]
[320901162,1711675843527,-1187.38,0.00049589,120]
[320901163,1711675843536,-1300.77,0.00049589,120]
[320901164,1711675843545,-500.0,0.00049589,120]
[320901165,1711675843554,-809.75,0.00049589,120]
[320901166,1711675843563,-1030.42,0.00049589,120]
[320901167,1711675843572,-613.99,0.00049589,120]
[320901168,1711675843582,-521.98,0.00049589,120]
[320901169,1711675843591,-500.0,0.00049589,120]
[320901170,1711675843601,-3874.65,0.00049589,120]
[320901171,1711675843610,-500.0,0.00049589,120]
[320901172,1711675843619,-1184.65,0.00049589,120]
[320901173,1711675843629,-639.54,0.00049589,120]
[320901174,1711675843637,-674.47,0.00049589,120]
[320901175,1711675843646,-681.28,0.00049589,120]
[320901176,1711675843655,-2020.03,0.00049589,120]
[320901177,1711675843664,-500.0,0.00049589,120]
[320901178,1711675843673,-500.0,0.00049589,120]
[320901179,1711675843685,-500.0,0.00049589,120]
[320901180,1711675843694,-500.0,0.00049589,120]
[320901181,1711675843703,-986.06,0.00049589,120]
[320901182,1711675843712,-500.0,0.00049589,120]
[320901183,1711675843721,-697.96,0.00049589,120]
[320901184,1711675843730,-624.42,0.00049589,120]
[320901185,1711675843739,-1907.0,0.00049589,120]
[320901186,1711675843748,-779.5,0.00049589,120]
[320901187,1711675843757,-7985.54,0.00049589,120]
[320901188,1711675843767,-500.0,0.00049589,120]
[320901189,1711675843777,-1181.05,0.00049589,120]
[320901190,1711675843786,-839.35,0.00049589,120]
[320901191,1711675843795,-940.66,0.00049589,120]
[320901192,1711675843804,-500.0,0.00049589,120]
[320901193,1711675843813,-513.69,0.00049589,120]
[320901194,1711675843822,-750.42,0.00049589,120]
[320901195,1711675843833,-2440.77,0.00049589,120]
[320901196,1711675843843,-500.0,0.00049589,120]
[320901197,1711675843852,-612.46,0.00049589,120]
[320901198,1711675843861,-500.0,0.00049589,120]
[320901199,1711675843870,-704.19,0.00049589,120]
[320901200,1711675843879,-664.67,0.00049589,120]
[320901201,1711675843889,-595.63,0.00049589,120]
[320901202,1711675843897,-500.0,0.00049589,120]
[320901203,1711675843907,-500.0,0.00049589,120]
[320901204,1711675843916,-505.75,0.00049589,120]
[320901205,1711675843925,-999.53,0.00049589,21]
[320901206,1711675843934,-2548.05,0.00049589,120]
[320901207,1711675843943,-1303.29,0.00049589,120]
[320901208,1711675843952,-603.95,0.00049589,120]
[320901209,1711675843961,-3227.52,0.00049589,120]
[320901210,1711675843971,-500.0,0.00049589,120]
[320901211,1711675843979,-1330.78,0.00049589,120]
[320901212,1711675843988,-755.61,0.00049589,120]
[320901213,1711675843998,-879.31,0.00049589,120]
[320901214,1711675844007,-1993.48,0.00049589,120]
[320901215,1711675844017,-500.0,0.00049589,120]
[320901216,1711675844025,-903.53,0.00049589,120]
[320901217,1711675844035,-500.0,0.00049589,120]
[320901218,1711675844044,-589.78,0.00049589,120]
[320901219,1711675844053,-803.36,0.00049589,120]
[320901220,1711675844062,-959.41,0.00049589,120]
[320901221,1711675844071,-677.91,0.00049589,120]
[320901222,1711675844080,-650.83,0.00049589,120]
[320901223,1711675844089,-500.0,0.00049589,120]
[320901224,1711675844099,-2921.68,0.00049589,120]
[320901225,1711675844109,-730.8,0.00049589,120]
[320901226,1711675844118,-500.0,0.00049589,120]
[320901227,1711675844128,-999.85,0.00049589,120]
[320901228,1711675844137,-500.0,0.00049589,120]
[320901229,1711675844146,-500.0,0.00049589,120]
[320901230,1711675844155,-521.93,0.00049589,120]
[320901231,1711675844164,-670.56,0.00049589,120]
[320901232,1711675844173,-500.0,0.00049589,120]
[320901233,1711675844182,-500.0,0.00049589,120]
[320901234,1711675844191,-705.67,0.00049589,120]
[320901235,1711675844200,-774.21,0.00049589,120]
[320901236,1711675844209,-500.0,0.00049589,120]
[320901237,1711675844217,-500.0,0.00049589,120]
[320901238,1711675844227,-2206.6,0.00049589,120]
[320901239,1711675844236,-676.97,0.00049589,120]
[320901240,1711675844245,-1953.83,0.00049589,120]
[320901241,1711675844254,-1953.83,0.00049589,120]
[320901242,1711675844263,-500.0,0.00049589,120]
[320901243,1711675844272,-542.79,0.00049589,120]
[320901244,1711675844281,-500.0,0.00049589,120]
[320901245,1711675844290,-1529.53,0.00049589,120]
[320901246,1711675844299,-799.19,0.00049589,120]
[320901247,1711675844309,-675.33,0.00049589,120]
[320901248,1711675844318,-629.58,0.00049589,120]
[320901249,1711675844327,-664.66,0.00049589,120]
[320901250,1711675844336,-500.0,0.00049589,120]
[320901251,1711675844345,-1380.78,0.00049589,120]
[320901252,1711675844354,-1785.47,0.00049589,120]
[320901253,1711675844364,-500.0,0.00049589,120]
[320901254,1711675844372,-500.0,0.00049589,120]
[320901255,1711675844382,-500.0,0.00049589,120]
[320901256,1711675844390,-500.0,0.00049589,120]
[320901257,1711675844400,-748.62,0.00049589,120]
[320901258,1711675844409,-970.09,0.00049589,120]
[320901259,1711675844417,-1169.81,0.00049589,120]
[320901260,1711675844426,-500.0,0.00049589,120]
[320901261,1711675844436,-152.73795542,0.00049597,30]
[320901262,1711675844445,-300.0,0.000496,18]
[320901263,1711675844454,-865.64290462,0.00049625,120]
[320901264,1711675844464,-200.0,0.00049628,30]
[320901265,1711675844473,-200.0,0.0004966,30]
[320901266,1711675844482,-200.0,0.00049691,30]
[320901267,1711675844492,-600.0,0.000497,18]
[320901268,1711675844501,-200.0,0.00049722,30]
[320901269,1711675844511,-200.0,0.00049754,30]
[320901270,1711675844520,-200.0,0.00049785,30]
[320901271,1711675844529,-729.7943893,0.00049794,120]
[320901272,1711675844538,-900.0,0.000498,18]
[320901273,1711675844548,-200.0,0.00049816,30]
[320901274,1711675844557,-200.0,0.00049848,30]
[320901275,1711675844566,-327.95056988,0.0004986,2]
[320901276,1711675844576,-500.0,0.00049862,120]
[320901277,1711675844587,-500.0,0.00049862,120]
[320901278,1711675844596,-500.0,0.00049862,120]
[320901279,1711675844605,-500.0,0.00049862,2]
[320901280,1711675844614,-500.0,0.00049862,120]
[320901281,1711675844623,-500.0,0.00049862,120]
[320901282,1711675844632,-536.47,0.00049862,120]
[320901283,1711675844641,-784.02,0.00049862,120]
[320901284,1711675844650,-500.0,0.00049862,120]
[320901285,1711675844659,-681.75,0.00049862,120]
[320901286,1711675844668,-775.37,0.00049862,120]
[320901287,1711675844678,-592.06,0.00049862,120]
[320901288,1711675844687,-542.71,0.00049862,120]
[320901289,1711675844698,-1175.0,0.00049862,120]
[320901290,1711675844706,-740.1,0.00049862,120]
[320901291,1711675844716,-1049.87,0.00049862,120]
[320901292,1711675844725,-962.67,0.00049862,120]
[320901293,1711675844735,-826.39,0.00049862,120]
[320901294,1711675844745,-818.87,0.00049862,120]
[320901295,1711675844754,-1345.33,0.00049862,120]
[320901296,1711675844763,-500.0,0.00049862,120]
[320901297,1711675844773,-590.25,0.00049862,120]
[320901298,1711675844782,-500.0,0.00049862,120]
[320901299,1711675844793,-500.0,0.00049862,120]
[320901300,1711675844803,-1164.0,0.00049862,120]
[320901301,1711675844812,-1014.79,0.00049862,120]
[320901302,1711675844821,-1300.93,0.00049862,120]
[320901303,1711675844831,-747.81,0.00049862,120]
[320901304,1711675844840,-630.48,0.00049862,120]
[320901305,1711675844849,-802.58,0.00049862,120]
[320901306,1711675844859,-746.08,0.00049862,120]
[320901307,1711675844868,-656.75,0.00049862,120]
[320901308,1711675844878,-978.95,0.00049862,120]
[320901309,1711675844887,-510.53078475,0.00049862,120]
[320901310,1711675844895,-500.0,0.00049863,2]
[320901311,1711675844904,-500.0,0.00049863,120]
[320901312,1711675844913,-505.64,0.00049863,120]
[320901313,1711675844922,-500.0,0.00049863,120]
[320901314,1711675844931,-500.0,0.00049863,120]
[320901315,1711675844940,-500.0,0.00049863,120]
[320901316,1711675844950,-500.0,0.00049863,120]
[320901317,1711675844959,-500.0,0.00049863,120]
[320901318,1711675844969,-500.0,0.00049863,120]
[320901319,1711675844978,-500.0,0.00049863,120]
[320901320,1711675844987,-500.0,0.00049863,120]
[320901321,1711675844996,-500.0,0.00049863,120]
[320901322,1711675845005,-500.0,0.00049863,120]
[320901323,1711675845014,-500.0,0.00049863,120]
[320901324,1711675845023,-500.0,0.00049863,120]
[320901325,1711675845032,-500.0,0.00049863,120]
[320901326,1711675845041,-500.0,0.00049863,120]
[320901327,1711675845050,-500.0,0.00049863,120]
[320901328,1711675845058,-500.0,0.00049863,120]
[320901329,1711675845067,-453.50499811,0.00049863,120]
[320901330,1711675845076,-500.0,0.00049863,120]
[320901331,1711675845086,-500.0,0.00049863,120]
[320901332,1711675845095,-612.97,0.00049863,120]
[320901333,1711675845104,-500.0,0.00049863,120]
[320901334,1711675845113,-500.0,0.00049863,120]
[320901335,1711675845123,-500.0,0.00049863,120]
[320901336,1711675845132,-500.0,0.00049863,120]
[320901337,1711675845142,-500.0,0.00049863,120]
[320901338,1711675845151,-500.0,0.00049863,120]
[320901339,1711675845161,-500.0,0.00049863,120]
[320901340,1711675845170,-500.0,0.00049863,120]
[320901341,1711675845179,-500.0,0.00049863,120]
[320901342,1711675845188,-500.0,0.00049863,120]
[320901343,1711675845197,-500.0,0.00049863,120]
[320901344,1711675845206,-500.0,0.00049863,120]
[320901345,1711675845215,-500.0,0.00049863,120]
[320901346,1711675845225,-500.0,0.00049863,120]
[320901347,1711675845234,-500.0,0.00049863,120]
[320901348,1711675845244,-150.0,0.00049863,120]
[320901349,1711675845253,-500.0,0.00049863,120]
[320901350,1711675845263,-624.86646219,0.00049863,120]
[320901351,1711675845272,-500.0,0.00049863,120]
[320901352,1711675845282,-500.0,0.00049863,120]
[320901353,1711675845291,-500.0,0.00049863,120]
[320901354,1711675845300,-500.0,0.00049863,120]
[320901355,1711675845309,-500.0,0.00049863,120]
[320901356,1711675845318,-500.0,0.00049863,120]
[320901357,1711675845327,-500.0,0.00049863,120]
[320901358,1711675845338,-500.0,0.00049863,120]
[320901359,1711675845347,-500.0,0.00049863,120]
[320901360,1711675845357,-500.0,0.00049863,120]
[320901361,1711675845366,-500.0,0.00049863,120]
[320901362,1711675845375,-618.06942445,0.00049863,7]
[320901363,1711675845384,-500.0,0.00049863,120]
[320901364,1711675845394,-500.0,0.00049863,120]
[320901365,1711675845403,-500.0,0.00049863,120]
[320901366,1711675845411,-500.0,0.00049863,120]
[320901367,1711675845421,-500.0,0.00049863,120]
[320901368,1711675845430,-606.36,0.00049863,120]
[320901369,1711675845439,-500.0,0.00049863,80]
[320901370,1711675845449,-500.0,0.00049863,120]
[320901371,1711675845458,-500.0,0.00049863,120]
[320901372,1711675845468,-686.33,0.00049863,120]
[320901373,1711675845477,-980.59,0.00049863,120]
[320901374,1711675845487,-500.0,0.00049863,120]
[320901375,1711675845496,-509.48,0.00049863,120]
[320901376,1711675845505,-500.0,0.00049863,120]
[320901377,1711675845515,-4571.9,0.00049863,120]
[320901378,1711675845524,-4521.69,0.00049863,120]
[320901379,1711675845533,-1457.26,0.00049863,120]
[320901380,1711675845543,-500.0,0.00049863,120]
[320901381,1711675845552,-617.27,0.00049863,120]
[320901382,1711675845562,-500.0,0.00049863,120]
[320901383,1711675845571,-500.0,0.00049863,120]
[320901384,1711675845581,-500.0,0.00049863,120]
[320901385,1711675845591,-1515.74,0.00049863,120]
[320901386,1711675845600,-3232.73,0.00049863,120]
[320901387,1711675845609,-500.0,0.00049863,60]
[320901388,1711675845618,-1085.93,0.00049863,120]
[320901389,1711675845627,-500.0,0.00049863,120]
[320901390,1711675845637,-500.0,0.00049863,120]
[320901391,1711675845646,-803.01,0.00049863,120]
[320901392,1711675845656,-1187.38,0.00049863,120]
[320901393,1711675845665,-1300.77,0.00049863,120]
[320901394,1711675845675,-500.0,0.00049863,120]
[320901395,1711675845689,-809.75,0.00049863,120]
[320901396,1711675845702,-1030.42,0.00049863,120]
[320901397,1711675845711,-613.99,0.00049863,120]
[320901398,1711675845721,-521.98,0.00049863,120]
[320901399,1711675845731,-500.0,0.00049863,120]
[320901400,1711675845740,-3874.65,0.00049863,120]
[320901401,1711675845750,-500.0,0.00049863,120]
[320901402,1711675845759,-1184.65,0.00049863,120]
[320901403,1711675845770,-639.54,0.00049863,120]
[320901404,1711675845779,-674.47,0.00049863,120]
[320901405,1711675845789,-681.28,0.00049863,120]
[320901406,1711675845798,-2020.03,0.00049863,120]
[320901407,1711675845807,-500.0,0.00049863,120]
[320901408,1711675845819,-500.0,0.00049863,120]
[320901409,1711675845829,-500.0,0.00049863,120]
[320901410,1711675845838,-500.0,0.00049863,120]
[320901411,1711675845848,-986.06,0.00049863,120]
[320901412,1711675845858,-500.0,0.00049863,120]
[320901413,1711675845867,-697.96,0.00049863,120]
[320901414,1711675845876,-624.42,0.00049863,120]